fUST/lending_fUST_20240813
["ID","MTS","AMOUNT","RATE_DAILY","PERIOD"]
[334700098,1723482666244,-500.0,0.00018491,2]
[334700099,1723482666255,-2029.92,0.00018491,2]
[334700100,1723482666265,-398.41791976,0.00018491,2]
[334700101,1723482666274,-500.0,0.00018491,2]
[334700102,1723482666283,-500.0,0.00018491,2]
[334700103,1723482666292,-500.0,0.00018491,2]
[334700104,1723482666301,-351.36827549,0.000185,2]
[334700105,1723482666310,-511.6,0.000185,2]
[334700106,1723482666319,-645.31,0.000185,2]
[334700107,1723482666329,-646.51,0.000185,2]
[334700108,1723482666339,-571.25,0.000185,2]
[334700109,1723482666351,-500.0,0.000185,2]
[334700110,1723482666360,-500.0,0.000185,2]
[334700111,1723482666369,-974.88,0.000185,2]
[334700112,1723482666378,-500.0,0.000185,2]
[334700113,1723482666388,-1271.71,0.000185,2]
[334700114,1723482666397,-500.0,0.000185,2]
[334700115,1723482666407,-500.0,0.000185,2]
[334700116,1723482666416,-503.77,0.000185,2]
[334700117,1723482666427,-667.51,0.000185,2]
[334700118,1723482666439,-500.0,0.000185,2]
[334700119,1723482666454,-1036.64,0.000185,2]
[334700120,1723482666464,-939.18,0.000185,2]
[334700121,1723482666474,-501.81,0.000185,2]
[334700122,1723482666483,-500.0,0.000185,2]
[334700123,1723482666494,-500.0,0.000185,2]
[334700124,1723482666504,-187.67907255,0.000185,2]
[334700125,1723482666514,-541.47,0.000185,2]
[334700126,1723482666524,-807.73,0.000185,2]
[334700127,1723482666534,-1252.91,0.000185,2]
[334700128,1723482666544,-1195.46,0.000185,2]
[334700129,1723482666553,-1858.24,0.000185,2]
[334700130,1723482666562,-1085.46,0.000185,2]
[334700131,1723482666572,-536.53,0.000185,2]
[334700132,1723482666582,-157.0,0.0001856,2]
[334700133,1723482666593,-602.0,0.000186,2]
[334700134,1723482666603,-500.0,0.00018601,2]
[334700135,1723482666613,-587.0,0.00018699,2]
[334700136,1723482666623,-1210.57,0.00018743,2]
[334700137,1723482666635,-806.72,0.00018743,2]
[334700138,1723482666646,-500.0,0.00018753,2]
[334700139,1723482666657,-2139.99,0.00018753,2]
[334700140,1723482666670,-8033.28,0.00018753,2]
[334700141,1723482666680,-873.01,0.00018753,2]
[334700142,1723482666692,-1377.31,0.00018753,2]
[334700143,1723482666704,-944.83,0.00018753,2]
[334700144,1723482666714,-500.0,0.00018754,2]
[334700145,1723482666724,-4309.2,0.00018754,2]
[334700146,1723482666734,-1327.45,0.00018754,2]
[334700147,1723482666745,-1061.79,0.00018754,2]
[334700148,1723482666756,-4692.37,0.00018754,2]
[334700149,1723482666766,-500.0,0.00018754,2]
[334700150,1723482666776,-1301.15,0.00018754,2]
[334700151,1723482666786,-500.0,0.00018754,2]
[334700152,1723482666796,-1477.48,0.00018754,2]
[334700153,1723482666806,-1537.7,0.00018754,2]
[334700154,1723482666815,-1492.05,0.00018754,2]
[334700155,1723482666825,-7818.96,0.00018754,2]
[334700156,1723482666834,-2345.86,0.00018754,2]
[334700157,1723482666845,-1481.47,0.00018754,2]
[334700158,1723482666855,-547.14,0.00018754,2]
[334700159,1723482666864,-757.41,0.00018754,2]
[334700160,1723482666874,-1373.41,0.00018754,2]
[334700161,1723482666883,-254.76555987,0.00018763,2]
[334700162,1723482666893,-500.0,0.00018764,2]
[334700163,1723482666903,-623.12,0.00018764,2]
[334700164,1723482666912,-320.21547839,0.00018764,2]
[334700165,1723482667093,-285.444046,0.00016024,2]
[334700166,1723482667105,-59.69389804,0.00016298,2]
[334700167,1723482667823,-5211.70443174,0.00015855,2]
[334700168,1723482667833,-342.39119771,0.00015952,2]
[334700169,1723482667844,-285.444046,0.00016034,2]
[334700170,1723482667855,-285.444046,0.00016159,2]
[334700171,1723482667864,-440.30610196,0.00016298,2]
[334700172,1723482667874,-285.444046,0.00016298,2]
[334700173,1723482667883,-500.0,0.00016572,2]
[334700174,1723482667892,-500.0,0.00016846,2]
[334700175,1723482667903,-500.0,0.0001712,2]
[334700176,1723482667913,-500.0,0.00017394,2]
[334700177,1723482667923,-500.0,0.00017668,2]
[334700178,1723482667933,-500.0,0.00017942,2]
[334700179,1723482667947,-500.0,0.00018216,2]
[334700180,1723482667957,-232.50452161,0.00018764,2]
[334700181,1723482667966,-672.42,0.00018764,2]
[334700182,1723482667976,-599.83,0.00018764,2]
[334700183,1723482667986,-645.14678939,0.00018764,2]
[334700184,1723482667996,-500.0,0.00018764,2]
[334700185,1723482668006,-791.7,0.00018764,2]
[334700186,1723482668015,-996.77,0.00018764,2]
[334700187,1723482668025,-500.0,0.00018764,2]
[334700188,1723482668035,-500.0,0.00018764,2]
[334700189,1723482668045,-500.0,0.00018764,2]
[334700190,1723482668055,-500.0,0.00018764,2]
[334700191,1723482668064,-805.23,0.00018764,2]
[334700192,1723482668074,-500.0,0.00018764,2]
[334700193,1723482668083,-500.0,0.00018764,2]
[334700194,1723482668095,-576.76,0.00018764,2]
[334700195,1723482668104,-818.86,0.00018764,2]
[334700196,1723482668114,-792.06,0.00018764,2]
[334700197,1723482668123,-1169.81,0.00018764,2]
[334700198,1723482668135,-989.58,0.00018764,2]
[334700199,1723482668144,-777.48,0.00018764,2]
[334700200,1723482668153,-532.92,0.00018764,2]
[334700201,1723482668163,-4589.52,0.00018764,2]
[334700202,1723482668173,-1073.29,0.00018764,2]
[334700203,1723482668182,-862.57,0.00018764,2]
[334700204,1723482668192,-1199.42,0.00018764,2]
[334700205,1723482668202,-500.0,0.00018764,2]
[334700206,1723482668212,-856.91,0.00018764,2]
[334700207,1723482668221,-502.53,0.00018764,2]
[334700208,1723482668230,-646.48,0.00018764,2]
[334700209,1723482668239,-5542.73,0.00018764,2]
[334700210,1723482668363,-500.0,0.00018764,2]
[334700211,1723482668372,-797.12,0.00018764,2]
[334700212,1723482668382,-1028.7,0.00018764,2]
[334700213,1723482668392,-531.41,0.00018764,2]
[334700214,1723482668401,-693.01,0.00018764,2]
[334700215,1723482668411,-603.87,0.00018764,2]
[334700216,1723482668421,-2310.68,0.00018764,2]
[334700217,1723482668431,-3390.01,0.00018764,2]
[334700218,1723482668441,-564.83,0.00018764,2]
[334700219,1723482668454,-500.0,0.00018764,2]
[334700220,1723482668463,-683.57,0.00018764,2]
[334700221,1723482668472,-1023.44,0.00018764,2]
[334700222,1723482668482,-500.0,0.00018764,2]
[334700223,1723482668493,-500.0,0.00018764,2]
[334700224,1723482668502,-500.0,0.00018764,2]
[334700225,1723482668512,-500.0,0.00018764,2]
[334700226,1723482668521,-617.79,0.00018764,2]
[334700227,1723482668533,-500.0,0.00018764,2]
[334700228,1723482668543,-500.0,0.00018764,2]
[334700229,1723482668553,-874.28,0.00018764,2]
[334700230,1723482668562,-1051.56,0.00018764,2]
[334700231,1723482668572,-710.59,0.00018764,2]
[334700232,1723482668582,-906.67,0.00018764,2]
[334700233,1723482668591,-2754.73,0.00018764,2]
[334700234,1723482668602,-1195.26,0.00018764,2]
[334700235,1723482668611,-834.44,0.00018765,2]
[334700236,1723482668622,-500.0,0.00018765,2]
[334700237,1723482668631,-579.12,0.00018765,2]
[334700238,1723482668641,-500.0,0.00018765,2]
[334700239,1723482668650,-500.0,0.00018765,2]
[334700240,1723482668660,-500.0,0.00018765,2]
[334700241,1723482668670,-500.0,0.00018765,2]
[334700242,1723482668679,-500.0,0.00018765,2]
[334700243,1723482668689,-586.32,0.00018765,2]
[334700244,1723482668699,-500.0,0.00018765,2]
[334700245,1723482668708,-2029.92,0.00018765,2]
[334700246,1723482668718,-500.0,0.00018765,2]
[334700247,1723482668727,-500.0,0.00018765,2]
[334700248,1723482668737,-500.0,0.00018765,2]
[334700249,1723482668747,-511.6,0.00018774,2]
[334700250,1723482668756,-645.31,0.00018774,2]
[334700251,1723482668766,-646.51,0.00018774,2]
[334700252,1723482668776,-571.25,0.00018774,2]
[334700253,1723482668786,-500.0,0.00018774,2]
[334700254,1723482668795,-500.0,0.00018774,2]
[334700255,1723482668805,-974.88,0.00018774,2]
[334700256,1723482668814,-500.0,0.00018774,2]
[334700257,1723482668823,-1271.71,0.00018774,2]
[334700258,1723482668834,-500.0,0.00018774,2]
[334700259,1723482668843,-500.0,0.00018774,2]
[334700260,1723482668853,-503.77,0.00018774,2]
[334700261,1723482668862,-667.51,0.00018774,2]
[334700262,1723482668872,-500.0,0.00018774,2]
[334700263,1723482668881,-1036.64,0.00018774,2]
[334700264,1723482668892,-939.18,0.00018774,2]
[334700265,1723482668902,-501.81,0.00018774,2]
[334700266,1723482668911,-500.0,0.00018774,2]
[334700267,1723482668920,-500.0,0.00018774,2]
[334700268,1723482668930,-541.47,0.00018774,2]
[334700269,1723482668940,-807.73,0.00018774,2]
[334700270,1723482668949,-1252.91,0.00018774,2]
[334700271,1723482668958,-1195.46,0.00018774,2]
[334700272,1723482668967,-1858.24,0.00018774,2]
[334700273,1723482668977,-1085.46,0.00018774,2]
[334700274,1723482668987,-536.53,0.00018774,2]
[334700275,1723482668996,-525.5901702,0.00018789,2]
[334700276,1723482669006,-400.0,0.00018789,2]
[334700277,1723482669016,-153.0,0.00018795,2]
[334700278,1723482669026,-589.133361,0.00018795,2]
[334700279,1723482669036,-304.8940543,0.00018795,2]
[334700280,1723482669045,-1413.0,0.00018802,2]
[334700281,1723482669055,-14638.44634197,0.00018886,2]
[334700282,1723482669065,-1375.68208424,0.00018904,2]
[334700283,1723482669075,-500.0,0.00018904,2]
[334700284,1723482669084,-1643.85139184,0.00018924,2]
[334700285,1723482669093,-45244.14614613,0.00019,2]
[334700286,1723482669106,-31127.97011643,0.00019,2]
[334700287,1723482669824,-500.0,0.00015455,2]
[334700288,1723482669834,-500.0,0.00015455,2]
[334700289,1723482669844,-500.0,0.00015455,2]
[334700290,1723482669854,-500.0,0.00015455,2]
[334700291,1723482669863,-500.0,0.00015455,2]
[334700292,1723482669873,-500.0,0.00015455,2]
[334700293,1723482669882,-500.0,0.00015455,2]
[334700294,1723482669891,-500.0,0.00015455,2]
[334700295,1723482669900,-287.3798668,0.00015455,2]
[334700296,1723482669910,-500.0,0.00015465,2]
[334700297,1723482669919,-500.0,0.00015465,2]
[334700298,1723482669929,-285.444046,0.00015477,2]
[334700299,1723482669939,-285.444046,0.00015709,2]
[334700300,1723482669949,-500.0,0.00015739,2]
[334700301,1723482669958,-500.0,0.00015739,2]
[334700302,1723482669968,-285.444046,0.0001574,2]
[334700303,1723482669978,-285.444046,0.0001575,2]
[334700304,1723482669988,-285.444046,0.0001576,2]
[334700305,1723482669998,-285.444046,0.00015851,2]
[334700306,1723482670007,-500.0,0.00016013,2]
[334700307,1723482670017,-285.444046,0.00016024,2]
[334700308,1723482670026,-285.444046,0.00016034,2]
[334700309,1723482670037,-2164.74871652,0.00016038,2]
[334700310,1723482670046,-285.444046,0.00016159,2]
[334700311,1723482670056,-582.8354928,0.00016192,2]
[334700312,1723482670065,-236.70763111,0.00016287,2]
[334700313,1723482670089,-157.65924198,0.00016287,2]
[334700314,1723482670143,-45.23196173,0.00016287,2]
[334700315,1723482670200,-60.40116518,0.00016287,2]
[334700316,1723482670209,-162.23055022,0.00016298,2]
[334700322,1723482842743,18115.3721203,0.0001446,2]
[334700323,1723482885575,364.91390372,0.0001446,2]
[334700324,1723482949813,181.577631,0.00014457,2]
[334700325,1723482971707,165.76143604,9.999e-05,2]
[334700327,1723483054097,154.76012181,0.0001212,2]
[334700331,1723483093686,163.853526,0.00014247,2]
[334700332,1723483120382,159.40070578,9.999e-05,2]
[334700333,1723483137782,213.62079761,0.00014691,2]
[334700334,1723483160545,154.76012181,0.0001212,2]
[334700335,1723483168893,159.65659206,0.0001212,2]
[334700344,1723483187766,213.62079761,0.0001212,2]
[334700348,1723483262771,213.62079761,0.00014691,2]
[334700362,1723483629127,-312.78317041,0.00015276,2]
[334700363,1723483631296,213.62079761,0.00014691,2]
[334700364,1723483632114,-104.80203733,0.00015276,2]
[334700365,1723483632136,-161.28589592,0.00015354,2]
[334700367,1723483671069,317.46167339,0.00014691,2]
[334700368,1723483757184,-441.52827006,0.00015355,2]
[334700369,1723483757206,-202.1320443,0.00015355,2]
[334700370,1723483758138,-326.34950635,0.00015355,2]
[334700371,1723483764307,155.09660614,0.00014691,2]
[334700372,1723483764328,58.52419147,0.00014691,2]
[334700373,1723483773787,155.63205783,0.00014691,2]
[334700374,1723483773815,84.08174217,0.00014691,2]
[334700375,1723483787396,163.774152,0.00014518,2]
[334700376,1723483787709,163.774152,0.0001477,2]
[334700415,1723483832721,-163.774152,0.00015022,2]
[334700416,1723483832730,-163.774152,0.00015274,2]
[334700417,1723483832740,-353.22261608,0.00015353,2]
[334700418,1723483832750,-628.69413238,0.00015355,2]
[334700429,1723483839098,-287.38831,0.00015355,2]
[334700433,1723483839482,-366.99479238,0.00015355,2]
[334700451,1723483840744,-2894.30402062,0.00015355,2]
[334700452,1723483840754,-353.22261604,0.00015356,2]
[334700453,1723483840763,-353.22261604,0.00015359,2]
[334700454,1723483840773,-353.22261604,0.00015362,2]
[334700455,1723483840782,-2000.0,0.00015365,2]
[334700456,1723483840792,-353.22261604,0.00015365,2]
[334700457,1723483840802,-300.0,0.00015375,2]
[334700458,1723483840811,-300.0,0.00015375,2]
[334700459,1723483840821,-1682.41086896,0.00015376,2]
[334700461,1723483840831,-909.75,0.0001539,2]
[334700463,1723483840841,-728.02,0.00015444,2]
[334700465,1723483840855,-500.0,0.00015444,2]
[334700466,1723483840865,-500.0,0.00015444,2]
[334700467,1723483840875,-500.0,0.00015444,2]
[334700469,1723483840884,-500.0,0.00015444,2]
[334700470,1723483840894,-511.14859023,0.00015444,2]
[334700472,1723483840904,-500.0,0.00015444,2]
[334700473,1723483840914,-500.0,0.00015444,2]
[334700474,1723483840924,-500.0,0.00015444,2]
[334700475,1723483840934,-500.0,0.00015444,2]
[334700476,1723483840945,-500.0,0.00015444,2]
[334700477,1723483840954,-500.0,0.00015444,2]
[334700478,1723483840964,-500.0,0.00015444,2]
[334700479,1723483840974,-500.0,0.00015444,2]
[334700480,1723483840983,-500.0,0.00015444,2]
[334700481,1723483840993,-232.84161182,0.00015444,2]
[334700482,1723483841002,-500.0,0.00015444,2]
[334700483,1723483841011,-500.0,0.00015444,2]
[334700484,1723483841020,-84102.3297713,0.00015445,2]
[334700485,1723483841030,-320.78173614,0.00015452,2]
[334700486,1723483841040,-500.0,0.00015452,2]
[334700487,1723483841050,-547.58376818,0.00015452,2]
[334700488,1723483841060,-500.0,0.00015452,2]
[334700489,1723483841070,-500.0,0.00015452,2]
[334700490,1723483841079,-500.0,0.00015452,2]
[334700491,1723483841089,-500.0,0.00015452,2]
[334700492,1723483841098,-500.0,0.00015452,2]
[334700493,1723483841110,-500.0,0.00015452,2]
[334700494,1723483841122,-500.0,0.00015452,2]
[334700495,1723483841133,-500.0,0.00015452,2]
[334700496,1723483841144,-500.0,0.00015452,2]
[334700497,1723483841154,-500.0,0.00015452,2]
[334700498,1723483841163,-586.51567879,0.00015452,2]
[334700499,1723483841173,-500.0,0.00015453,2]
[334700500,1723483841182,-1233.28,0.00015453,2]
[334700501,1723483841192,-4569.21,0.00015453,2]
[334700502,1723483841202,-500.0,0.00015453,2]
[334700503,1723483841212,-782.73,0.00015453,2]
[334700504,1723483841222,-511.78,0.00015453,2]
[334700505,1723483841231,-500.0,0.00015453,2]
[334700506,1723483841242,-2343.65,0.00015453,2]
[334700507,1723483841253,-783.75,0.00015453,2]
[334700508,1723483841262,-500.0,0.00015454,2]
[334700509,1723483841272,-598.48462005,0.00015454,2]
[334700510,1723483841282,-500.0,0.00015454,2]
[334700511,1723483841291,-500.0,0.00015454,2]
[334700512,1723483841301,-500.0,0.00015454,2]
[334700513,1723483841310,-500.0,0.00015454,2]
[334700514,1723483841322,-500.0,0.00015454,2]
[334700515,1723483841332,-500.0,0.00015454,2]
[334700516,1723483841342,-500.0,0.00015454,2]
[334700517,1723483841352,-513.78,0.00015454,2]
[334700518,1723483841364,-500.0,0.00015454,2]
[334700519,1723483841374,-500.0,0.00015454,2]
[334700520,1723483841384,-500.0,0.00015454,2]
[334700521,1723483841393,-500.0,0.00015454,2]
[334700522,1723483841402,-500.0,0.00015454,2]
[334700523,1723483841412,-500.0,0.00015454,2]
[334700524,1723483841423,-560.54,0.00015454,2]
[334700525,1723483841435,-500.0,0.00015454,2]
[334700526,1723483841446,-500.0,0.00015454,2]
[334700527,1723483841457,-500.0,0.00015454,2]
[334700528,1723483841467,-542.61,0.00015454,2]
[334700529,1723483841476,-500.0,0.00015454,2]
[334700530,1723483841485,-500.0,0.00015454,2]
[334700531,1723483841494,-500.0,0.00015454,2]
[334700532,1723483841504,-681.16,0.00015454,2]
[334700533,1723483841515,-500.0,0.00015454,2]
[334700534,1723483841524,-598.32,0.00015454,2]
[334700535,1723483841534,-521.18192109,0.00015454,2]
[334700536,1723483841544,-2638.67,0.00015454,2]
[334700537,1723483841555,-500.0,0.00015454,2]
[334700538,1723483841564,-675.31,0.00015454,2]
[334700539,1723483841573,-500.0,0.00015454,2]
[334700540,1723483841583,-500.0,0.00015454,2]
[334700541,1723483841593,-500.0,0.00015454,2]
[334700542,1723483841602,-500.0,0.00015454,2]
[334700543,1723483841615,-500.0,0.00015454,2]
[334700544,1723483841625,-500.0,0.00015454,2]
[334700545,1723483841634,-178.58257224,0.00015454,2]
[334700546,1723483841644,-500.0,0.00015454,2]
[334700547,1723483841653,-500.0,0.00015454,2]
[334700548,1723483841663,-500.0,0.00015454,2]
[334700549,1723483841674,-500.0,0.00015454,2]
[334700550,1723483841686,-500.0,0.00015454,2]
[334700551,1723483841697,-2909.17,0.00015454,2]
[334700552,1723483841707,-508.59,0.00015454,2]
[334700553,1723483841718,-500.0,0.00015454,2]
[334700554,1723483841728,-500.0,0.00015454,2]
[334700555,1723483841739,-500.0,0.00015454,2]
[334700556,1723483841751,-500.0,0.00015454,2]
[334700557,1723483841762,-1125.62,0.00015454,2]
[334700558,1723483841772,-500.0,0.00015454,2]
[334700559,1723483841782,-500.0,0.00015454,2]
[334700560,1723483841793,-500.0,0.00015454,2]
[334700561,1723483841804,-1343.51,0.00015454,2]
[334700562,1723483841816,-500.0,0.00015454,2]
[334700563,1723483841826,-627.34,0.00015454,2]
[334700564,1723483841836,-1961.77,0.00015454,2]
[334700565,1723483841849,-500.0,0.00015454,2]
[334700566,1723483841863,-951.27,0.00015454,2]
[334700567,1723483841877,-500.0,0.00015454,2]
[334700568,1723483841886,-990.18,0.00015454,2]
[334700569,1723483841898,-674.67,0.00015454,2]
[334700570,1723483841906,-845.92,0.00015454,2]
[334700571,1723483841915,-216.54986318,0.00015454,2]
[334700572,1723483841925,-500.0,0.00015454,2]
[334700573,1723483841934,-500.0,0.00015454,2]
[334700574,1723483841943,-500.0,0.00015454,2]
[334700575,1723483841952,-500.0,0.00015454,2]
[334700576,1723483841961,-4438.77,0.00015454,2]
[334700577,1723483841970,-535.96,0.00015454,2]
[334700578,1723483841982,-500.0,0.00015454,2]
[334700579,1723483841991,-500.0,0.00015454,2]
[334700580,1723483841999,-500.0,0.00015454,2]
[334700581,1723483842009,-500.0,0.00015454,2]
[334700582,1723483842021,-1330.12,0.00015454,2]
[334700583,1723483842031,-526.42,0.00015454,2]
[334700584,1723483842040,-838.71,0.00015454,2]
[334700585,1723483842050,-500.0,0.00015454,2]
[334700586,1723483842061,-506.7,0.00015454,2]
[334700587,1723483842070,-840.18,0.00015454,2]
[334700588,1723483842079,-609.78,0.00015454,2]
[334700589,1723483842089,-500.0,0.00015454,2]
[334700590,1723483842099,-1595.7,0.00015454,2]
[334700591,1723483842111,-500.0,0.00015454,2]
[334700592,1723483842120,-743.93,0.00015454,2]
[334700593,1723483842130,-500.0,0.00015454,2]
[334700594,1723483842140,-676.15,0.00015454,2]
[334700595,1723483842150,-713.24,0.00015454,2]
[334700596,1723483842161,-500.0,0.00015454,2]
[334700597,1723483842171,-782.45,0.00015454,2]
[334700598,1723483842181,-500.0,0.00015454,2]
[334700599,1723483842191,-500.0,0.00015454,2]
[334700600,1723483842200,-500.0,0.00015454,2]
[334700601,1723483842212,-490.23892802,0.00015454,2]
[334700631,1723483846834,-501.4743432,0.00015444,2]
[334700632,1723483846844,-422.79778272,0.00015444,2]
[334700633,1723483846857,-9.76107198,0.00015454,2]
[334700634,1723483846867,-500.0,0.00015454,2]
[334700635,1723483846876,-3215.61,0.00015454,2]
[334700636,1723483846886,-2528.73,0.00015454,2]
[334700637,1723483846897,-84102.3297713,0.00015455,2]
[334700638,1723483846907,-500.0,0.00015455,2]
[334700640,1723483846917,-500.0,0.00015455,2]
[334700642,1723483846928,-500.0,0.00015455,2]
[334700644,1723483846938,-500.0,0.00015455,2]
[334700646,1723483846948,-500.0,0.00015455,2]
[334700648,1723483846958,-500.0,0.00015455,2]
[334700650,1723483846969,-500.0,0.00015455,2]
[334700652,1723483846979,-500.0,0.00015455,2]
[334700654,1723483846989,-500.0,0.00015455,2]
[334700656,1723483847000,-500.0,0.00015455,2]
[334700657,1723483847010,-500.0,0.00015455,2]
[334700658,1723483847020,-500.0,0.00015455,2]
[334700659,1723483847031,-500.0,0.00015455,2]
[334700660,1723483847041,-569.58,0.00015455,2]
[334700661,1723483847051,-500.0,0.00015455,2]
[334700662,1723483847061,-500.0,0.00015455,2]
[334700663,1723483847070,-500.0,0.00015455,2]
[334700664,1723483847080,-500.0,0.00015455,2]
[334700665,1723483847089,-500.0,0.00015455,2]
[334700666,1723483847100,-500.0,0.00015455,2]
[334700667,1723483847111,-500.0,0.00015455,2]
[334700668,1723483847121,-505.99157688,0.00015455,2]
[334700669,1723483847132,-500.0,0.00015455,2]
[334700670,1723483847141,-500.0,0.00015455,2]
[334700671,1723483847151,-500.0,0.00015455,2]
[334700672,1723483847162,-609.36,0.00015455,2]
[334700673,1723483847172,-743.0,0.00015455,2]
[334700674,1723483847182,-549.04,0.00015455,2]
[334700675,1723483847192,-500.0,0.00015455,2]
[334700676,1723483847202,-500.0,0.00015455,2]
[334700677,1723483847212,-500.0,0.00015455,2]
[334700678,1723483847226,-811.49,0.00015455,2]
[334700679,1723483847236,-500.0,0.00015455,2]
[334700680,1723483847245,-774.74,0.00015455,2]
[334700681,1723483847255,-500.0,0.00015455,2]
[334700682,1723483847264,-500.0,0.00015455,2]
[334700683,1723483847275,-500.0,0.00015455,2]
[334700684,1723483847284,-1127.83,0.00015455,2]
[334700685,1723483847293,-500.0,0.00015455,2]
[334700686,1723483847303,-658.84,0.00015455,2]
[334700687,1723483847312,-500.0,0.00015455,2]
[334700688,1723483847322,-518.97,0.00015455,2]
[334700689,1723483847332,-500.0,0.00015455,2]
[334700690,1723483847342,-500.0,0.00015455,2]
[334700691,1723483847351,-500.0,0.00015455,2]
[334700692,1723483847363,-500.0,0.00015455,2]
[334700693,1723483847375,-500.0,0.00015455,2]
[334700694,1723483847384,-43576.55186471,0.00015455,2]
[334700695,1723483847393,-3815.31310045,0.00015455,2]
[334700696,1723483851317,883.86,0.00010959,2]
[334700697,1723483920328,213.62079761,0.00010959,2]
[334700698,1723483935541,154.80646411,0.00013283,2]
[334700699,1723483957854,213.62079761,0.00013283,2]
[334700700,1723483960098,2764.76125587,0.00010959,2]
[334700701,1723484047639,24727.6411983,0.0001469,2]
[334700702,1723484075402,213.62079761,0.00010959,2]
[334700703,1723484150517,163.853526,0.00014247,2]
[334700705,1723484191837,213.62079761,0.00010959,2]
[334700706,1723484221925,213.62079761,0.00014247,2]
[334700707,1723484281409,169.55497,0.00014554,2]
[334700708,1723484281812,169.55497,0.00014638,2]
[334700709,1723484281932,169.55497,0.00014722,2]
[334700710,1723484282156,169.55497,0.00014806,2]
[334700711,1723484282398,169.55497,0.00014891,2]
[334700712,1723484282636,169.55497,0.00014975,2]
[334700713,1723484290585,5393.0,0.00025,60]
[334700714,1723484312550,500.0,0.00027,120]
[334700715,1723484341870,213.62079761,0.00014975,2]
[334700716,1723484447867,213.62079761,0.00014975,2]
[334700717,1723484455852,213.62079761,0.00014975,2]
[334700718,1723484576931,213.62079761,0.00014975,2]
[334700719,1723484606439,196.61152347,9.999e-05,2]
[334700720,1723484659969,21824.367963,0.00015,2]
[334700722,1723484675126,213.62079761,9.999e-05,2]
[334700723,1723484703150,197760.93081085,0.00015,2]
[334700724,1723484704883,213.62079761,9.999e-05,2]
[334700725,1723484726129,306.99721495,9.999e-05,2]
[334700726,1723484743058,175.358424,0.00014247,2]
[334700727,1723484752951,694.61784624,9.999e-05,2]
[334700728,1723484754153,-169.55497,0.00015059,2]
[334700729,1723484754175,-169.55497,0.00015144,2]
[334700730,1723484754197,-3913.73735682,0.00015185,2]
[334700731,1723484763385,254.92279296,0.0001212,2]
[334700732,1723484765848,169.55497,0.0001448,2]
[334700733,1723484779422,205.12580516,9.999e-05,2]
[334700734,1723484782159,154.72922386,9.999e-05,2]
[334700735,1723484824810,542.48310742,0.0001212,2]
[334700736,1723484836115,1092.59843641,0.00014999,2]
[334700737,1723484839113,-169.55497,0.00015235,2]
[334700738,1723484839136,-300.0,0.00015334,2]
[334700739,1723484839157,-226.72972546,0.00015334,2]
[334700740,1723484900031,208.45850869,9.999e-05,2]
[334700741,1723484910613,210.07711325,9.999e-05,2]
[334700742,1723485004364,196.0,0.0001212,2]
[334700743,1723485004391,584.24037496,0.0001212,2]
[334700783,1723485031996,-4997.2165308,0.000153,2]